Cogmind - Beta 10.2 @@@ ROGUE MODE // 2021.10.16 @ 15:56:57 Player: Jezoensis Result: Destroyed by D-53 Grenadier with Mini Grenade Launcher Performance ------------- Evolutions (0) 0 Regions Visited (2) 400 Robots Destroyed (20) 100 Value Destroyed (403) 403 Prototype IDs (2) 40 Alien Tech Used (0) 0 Bonus (0) 0 TOTAL SCORE: 943 Bonus ------- None Cogmind --------- Core Integrity 0/250 Matter 181/300 Energy 76/100 System Corruption 0% Temperature Cool (0) Movement Core (50) Location -10/Mines Parts ------- > --- POWER (1) -------- (None) > --- PROPULSION (2) --- (None) > --- UTILITY (2) ------ Improved Terrain Scanner > --- WEAPON (2) ------- (None) > --- INVENTORY (4) ---- Large Storage Unit High-capacity Matter Pod (193) Terrain Scan Processor Mining Laser Peak State ------------ > --- POWER ------------ Ion Engine > --- PROPULSION ------- Aluminum Leg Aluminum Leg > --- UTILITY ---------- Small Storage Unit Improved Terrain Scanner > --- WEAPON ----------- Particle Gun Particle Gun > --- INVENTORY -------- Large Storage Unit High-capacity Matter Pod Terrain Scan Processor Light Armor Plating Grenade Launcher Mining Laser [Rating: 10] Favorites ----------- Power Ion Engine Engine Ion Engine Propulsion Aluminum Leg Leg Aluminum Leg Utility Small Storage Unit Device Improved Terrain Scanner Storage Small Storage Unit Protection Light Armor Plating Weapon Light Assault Rifle Energy Gun Particle Gun Energy Cannon Beam Cannon Ballistic Gun Light Assault Rifle Launcher Grenade Launcher Special Weapon Mining Laser Build | -11 -10 -10 ------- Run | Scr Mat Min Slots Evolved . | . . . Power . | . . . Propulsion . | . . . Utility . | . . . Weapon . | . . . Parts Attached 42 | 8 22 12 Power 5 | 1 2 2 Engine 5 | 1 2 2 Core . | . . . Reactor . | . . . Propulsion 3 | 2 1 . Treads . | . . . Leg 3 | 2 1 . Wheel . | . . . Hover . | . . . Flight . | . . . Utility 15 | 3 4 8 Device 7 | 1 2 4 Storage 4 | 2 . 2 Processor . | . . . Hackware . | . . . Protection 4 | . 2 2 Artifact . | . . . Weapon 19 | 2 15 2 Energy Gun 8 | 1 6 1 Energy Cannon 2 | . 2 . Ballistic Gun 2 | 1 1 . Ballistic Cannon . | . . . Launcher 4 | . 3 1 Special Weapon 3 | . 3 . Impact Weapon . | . . . Slashing Weapon . | . . . Piercing Weapon . | . . . Special Melee Weapon . | . . . Unidentified Prototypes . | . . . Parts Lost 8 | . 2 6 Power 1 | . . 1 Propulsion 2 | . . 2 Utility 1 | . . 1 Weapon 4 | . 2 2 Highest Loss Streak 6 | . 1 6 Average Slot Usage (%) 94 | . 97 80 Engine 14 | . 14 14 Leg 27 | . 28 26 Device 11 | . 12 7 Storage 14 | . 14 14 Protection 2 | . 1 5 Energy Gun 8 | . 9 4 Energy Cannon 2 | . 2 . Ballistic Gun 8 | . 10 . Launcher 2 | . 1 7 Naked Turns . | . . . Heaviest Build 16 | 10 16 15 Greatest Support 20 | 20 20 20 Greatest Overweight (x) . | . . . Average Overweight (x) . | . . . Largest Inventory Capacity 10 | 6 6 10 Average Capacity 5 | 5 6 6 Most Carried 6 | 4 6 6 Average Carried 5 | 2 5 5 Final Capacity 6 | 6 6 4 Final Carried 6 | 4 6 4 Class Distribution -------------------- 91% | Mutant 8% | Scavenger-Mutant Dominant Class ---------------- Mutant | -10/Materials Mutant | -10/Mines Resources | -11 -10 -10 ----------- Run | Scr Mat Min Matter Collected 896 | 290 555 51 Remotely . | . . . Salvage Created 590 | 139 401 50 Parts 30 | 11 15 4 Haulers Intercepted 2 | . 2 . Recyclers Shooed 4 | 1 2 1 Parts Field Recycled . | . . . Retrieved Matter . | . . . Parts Self-Destructed . | . . . Prevented . | . . . Kills | -11 -10 -10 ------- Run | Scr Mat Min Combat Hostiles Destroyed 13 | . 9 4 Guns 3 | . 3 . AOE 10 | . 6 4 Classes Destroyed 7 | 2 4 1 Tunneler 4 | 3 . 1 Hauler 2 | . 2 . Recycler 2 | 1 1 . Watcher 2 | . 2 . Swarmer 3 | . 3 . Grunt 7 | . 6 1 Assembled 3 | . . 3 Best Kill Streak 5 | 4 5 3 Combat Bots Only 3 | . 2 3 Max Kills in Single Turn 2 | 1 2 2 Gunslinging . | . . . Exploded 2 | . 2 2 Melee . | . . . Uniques/NPCs Destroyed . | . . . Combat | -11 -10 -10 -------- Run | Scr Mat Min Damage Taken 1034 | . 501 533 Core 264 | . 136 128 Absorbed by Shields . | . . . Core Remaining (%) 100 | 100 . . Volleys Fired 81 | 10 56 15 Largest 2 | 2 2 1 Hottest 130 | 60 130 65 Shots Fired 120 | 20 85 15 Gun 96 | 20 69 7 Cannon . | . . . Launcher 19 | . 11 8 Special 5 | . 5 . Kinetic 52 | 10 42 . Thermal 49 | 10 32 7 Explosive 19 | . 11 8 Electromagnetic . | . . . Robot Hit Streak 12 | 8 12 7 Robot Miss Streak 5 | 1 5 1 Penetration Max . | . . . Secondary Targets . | . . . Shots Hit Robots 73 | 16 47 10 Core Hits 47 | 7 29 11 Critical Hits 1 | . 1 . Critical Kills 1 | . 1 . Critical Parts Destroyed . | . . . Melee Attacks . | . . . Impact . | . . . Slashing . | . . . Piercing . | . . . Sneak Attacks . | . . . Combat Hostiles . | . . . Follow-up Attacks . | . . . Damage Inflicted 1654 | 155 1018 481 Guns 634 | 155 404 75 Cannons . | . . . Explosions 1020 | . 614 406 Melee . | . . . Ramming . | . . . Kinetic 263 | 65 198 . Thermal 371 | 90 206 75 Explosive 1020 | . 614 406 Electromagnetic . | . . . Impact . | . . . Slashing . | . . . Piercing . | . . . Highest Corruption . | . . . Average Corruption . | . . . Corruption Purged . | . . . Overload Shots . | . . . Overflow Damage 35 | . 20 15 Projectiles . | . . . Explosions 35 | . 20 15 Melee . | . . . Knockbacks . | . . . Impact . | . . . Kinetic . | . . . Secondary . | . . . Self-Inflicted Damage 296 | . 197 99 Shots 8 | . 4 4 Rammed . | . . . Targets Rammed . | . . . Kicked . | . . . Crushed . | . . . Highest Temperature 138 | 40 138 72 Average Temperature 23 | 17 23 25 Received Heat Transfer 167 | . 111 56 Siege Activations . | . . . Robots Corrupted . | . . . Combat Hostiles . | . . . Parts Fried . | . . . Impact Corruptions . | . . . Robots Melted . | . . . Combat Hostiles . | . . . Parts Melted 1 | . 1 . Heat Transferred 859 | 200 474 185 Parts Sabotaged . | . . . Parts Stolen . | . . . Parts Stripped . | . . . Power Chain Reactions . | . . . Missiles Intercepted . | . . . Alert | -11 -10 -10 ------- Run | Scr Mat Min Peak Influence 369 | 20 369 146 Initial 96 | . 13 96 Average 162 | 7 189 122 Maximum Alert Level 1 | . 1 . Low Security (%) 71 | 100 62 100 Level 1 28 | . 37 . Level 2 . | . . . Level 3 . | . . . Level 4 . | . . . Level 5 . | . . . High Security . | . . . Max Security . | . . . Squads Dispatched 2 | . 2 . Investigation . | . . . Extermination . | . . . Reinforcement 2 | . 2 . Assault . | . . . Garrison . | . . . Intercept . | . . . Construction Impeded . | . . . Haulers Reinforced . | . . . Stealth | -11 -10 -10 --------- Run | Scr Mat Min Distress Signals 1 | . 1 . Communications Jammed . | . . . Distress Signals . | . . . Times Spotted 27 | . 20 7 Peak Tracking Total 5 | . 4 5 Tactical Retreats 2 | . 1 1 Traps | -11 -10 -10 ------- Run | Scr Mat Min Traps Triggered 1 | . 1 . Indirectly . | . . . Trap Hack Attempts . | . . . Triggered . | . . . Disarmed . | . . . Reprogrammed . | . . . Reused . | . . . Traps Extracted . | . . . Installed . | . . . Triggered . | . . . Machines | -11 -10 -10 ---------- Run | Scr Mat Min Machines Disabled 2 | . 2 . Max in Single Turn 2 | . 2 . Machines Sabotaged . | . . . Garrisons Compromised . | . . . Overloaded Fab Kills . | . . . Fab Network Shutdowns . | . . . Hacking | -11 -10 -10 --------- Run | Scr Mat Min Machines Accessed 6 | . 6 . Terminals 5 | . 5 . Fabricators . | . . . Repair Stations . | . . . Recycling Units 1 | . 1 . Scanalyzers . | . . . Garrison Access . | . . . Total Hacks 18 | . 18 . Successful 10 | . 10 . Failed 7 | . 7 . Catastrophic . | . . . Database Lockouts 1 | . 1 . Manual 13 | . 13 . Terminals 15 | . 15 . Fabricators . | . . . Repair Stations . | . . . Recycling Units 3 | . 3 . Scanalyzers . | . . . Garrison Access . | . . . Terminal Hacks 6 | . 6 . Part Schematic 1 | . 1 . Robot Analysis 1 | . 1 . Prototype ID Bank 1 | . 1 . Terminal Index 1 | . 1 . Locate Traps 1 | . 1 . Zone Layout 1 | . 1 . Fabricator Hacks . | . . . Repair Station Hacks . | . . . Recycling Unit Hacks . | . . . Scanalyzer . | . . . Garrison Access Hacks . | . . . Unauthorized Hacks 4 | . 4 . Terminals 4 | . 4 . Track 1 | . 1 . Botnet 2 | . 2 . Operators 1 | . 1 . Fabricators . | . . . Repair Stations . | . . . Recycling Units . | . . . Scanalyzers . | . . . Garrison Access . | . . . Data Cores Recovered . | . . . Used . | . . . Hacking Detections 6 | . 6 . Full Trace Events 1 | . 1 . Feedback Events . | . . . Feedback Blocked . | . . . Robot Schematics Acquired . | . . . Robots Built . | . . . Matter . | . . . Time . | . . . Total Robot Build Rating . | . . . Part Schematics Acquired 1 | . 1 . Parts Built . | . . . Matter . | . . . Time . | . . . Total Part Build Rating . | . . . Parts Repaired . | . . . Time . | . . . Parts Recycled . | . . . Recycled Matter . | . . . Retrieved Matter . | . . . Retrieved Components . | . . . Parts Scanalyzed . | . . . Part Schematics Acquired . | . . . Parts Damaged . | . . . Bothacking | -11 -10 -10 ------------ Run | Scr Mat Min Used RIF Installer . | . . . Robots Hacked . | . . . Non-combat . | . . . Combat . | . . . Robot Hacks Applied . | . . . Relay Couplers Released . | . . . Robots Rewired . | . . . Allies Hacked . | . . . Hacks Repelled . | . . . Allies | -11 -10 -10 -------- Run | Scr Mat Min Total Allies . | . . . Largest Group . | . . . Highest-Rated Group . | . . . Highest-Rated Ally . | . . . Total Orders . | . . . Ally Attacks . | . . . Total Damage . | . . . Kills . | . . . Allies Corrupted . | . . . Allies Melted . | . . . Intel | -11 -10 -10 ------- Run | Scr Mat Min Robot Analysis Total 1 | . 1 . Derelict Logs Recovered . | . . . Drone Launches . | . . . Drone Recoveries . | . . . Exploration | -11 -10 -10 ------------- Run | Scr Mat Min Turns Passed 1042 | 89 773 180 Spaces Moved 642 | 45 488 109 Core 12 | 12 . . Treads . | . . . Legs 630 | 33 488 109 Wheels . | . . . Hover . | . . . Flight . | . . . Fastest Speed 50 | 50 120 120 Average Speed 118 | 101 120 120 Slowest Speed 120 | 120 120 120 Overloaded Moves . | . . . Propulsion Burnouts . | . . . Robots Hopped . | . . . Cave-ins Triggered . | . . . Exploration Rate (%) 39 | 3 88 26 Regions Visited 2 Branch Regions 1 Pre-discovered Areas . | . . . Known Exits Taken . | . . . Unknown Exits Taken 2 | 1 1 . Scrap Searched 1 | . . 1 Spaces Dug 5 | . 5 . Terrain Destroyed 198 | . 124 74 Melee . | . . . Projectile 5 | . 5 . AOE 193 | . 119 74 Terrain Rammed . | . . . Walls Destroyed . | . . . Machines Disabled . | . . . Actions | -11 -10 -10 --------- Run | Scr Mat Min Total 796 | 68 587 141 Wait . | . . . Move 640 | 44 487 109 Hop . | . . . Pick Up 14 | 5 9 . Fast Attach 11 | 6 3 2 Attach 5 | 2 1 2 Detach 1 | 1 . . Swap 26 | . 18 8 Drop 18 | . 13 5 Fire 81 | 10 56 15 Melee . | . . . Ram . | . . . Kick . | . . . Crush . | . . . Escape Stasis . | . . . Rewire . | . . . Trap . | . . . Miscellaneous . | . . . Route ------- -11/Scrapyard -10/Materials (discovered 4 exits: [*Mat x3] / [*Min]) -10/Mines History --------- Turn | Location | Event 10 | -11/Scrapyard | Discovered new exit (range 16) 90 | -11/Scrapyard | Entered Materials 193 | -10/Materials | Discovered new exit (range 13) 337 | -10/Materials | Build established: Mutant 511 | -10/Materials | Discovered new exit (range 6) 627 | -10/Materials | Central database locked down 721 | -10/Materials | Discovered new exit (range 4) 739 | -10/Materials | Discovered new exit (range 16) 848 | -10/Materials | Core integrity fell below 50% 863 | -10/Materials | Entered Mines 994 | -10/Mines | Assembled infested the area 1041 | -10/Mines | Core integrity fell below 20% 1043 | -10/Mines | Destroyed by D-53 Grenadier with Mini Grenade Launcher Last Messages --------------- 00999_ Found 17 Matter. 01000_ Acquired 17 matter. 01000_ Dropped Imp. Terrain Scanner. 01001_ Acquired Imp. Terrain Scanner. 01002_ R-06 Scavenger collects Tractor Beam. 01015_ as-51752 destroyed. 01015_ as-36085 destroyed. 01016_ The unstable cave ceiling collapses. 01017_ Destroyed Asb. Hover Unit. 01019_ The unstable cave ceiling collapses. 01019_ as-03729 destroyed. 01023_ C-30 ARC bursts open, deploying its payload. 01023_ D-53 Grenadier unfolds itself. 01024_ The unstable cave ceiling collapses. 01024_ Grenade Launcher destroyed. 01024_ Lgt. Armor Plating destroyed. 01037_ Aluminum Leg destroyed. 01039_ Particle Gun destroyed. 01040_ Ion Engine destroyed. 01042_ Dropped Sml. Storage Unit. Map ----- +----------------------------------------------------+ | ?????????????????????????#???????????????????????? | | ?????????????????????????????????????????????????? | | ??????######?????????????????????????????????????? | | #### #????????????????#????????????????????? | | """???????????????????????????????????????? | | """???????????????????????????????????????? | | #### """???????????????????????????????????????? | | ???????? ??????????????????????#????????????????? | | ##????????? ??????????????#??????????????????????? | | ##??????????????????????????????????????????????? | | ???????????????? #???????????????? ???????????? | | ???????????????# #??????????????? #???????????? | | ??#???????????#?# #?##?????#####?? #???????????? | | #???????????????# ? #????# ! ??* ##??????????? | | #??????????####?# #?# #???## ##??= ?##????????? | | #??######### ### #?# #???#! !#?# ?? #????????? | | ##??# ## #?# #?### ## ? ?????????? | | #???# #?# #?# #?# ? ??????????? | | ????# #### #?# ### #?# #?? ???????????? | | #???# #??# ### ## ### # #? #???????????? | | ????# #??# # ## ##!#???????????? | | ##### #??## ##???#??????? | | #???## = ###### #??? | | #?#?## ! #??? | | ########?### d d #??? | | ?????????# @ # # ######????? | | #?????#?# # #???????????? | | ????????# ### ### #???????????? | | ????????###??## ##?# ###???????????? | | ???????#??????###### ##??# #?????????????? | | #?#????????????????## #######???# #?????????????? | | ???#????????????????###????????? #?????????????? | | ???????????????????????????????? #?????????????? | | ????????????????????????????????#" #?????????????? | | ?????????????????????????????????%"#?????????????? | | ?????????????????????????????????" #?????????????? | | ????????????????????????????????? ##?????????????? | | ?????????????????????????????????#???????????????? | | ?????????????????????????????????????????????????? | | ?????????????????????????????????????????????????? | | ?????????????????????????????????????????????????? | | ?????????????????????????????????????????????????? | | ?????????????????????????????????????????????????? | | ?????????????????????????????????????????????????? | | ?????????????????????????????????????????????????? | | ?????????????????????????????????????????????????? | | ?????????????????????????????????????????????????? | | ?????????????????????????????????????????????????? | | ?????????????????????????????????????????????????? | | ?????????????????????????????????????????????????? | +----------------------------------------------------+ Best States ------------- Heat Dissipation 25 Energy Generation 10 Energy Capacity 250 Matter Stores 300 Matter Capacity 300 Sight Range 16 Terrain Scan Range 16 Terrain Scan Density 10 Armor Coverage 150 Evasion (%) 50 Item Schematics ----------------- Lrg. Storage Unit | -10/Materials | Hacked Robot Schematics ------------------ None Fabricated ------------ Nothing Alien Tech Used ----------------- None Achievements -------------- None Challenges ------------ None Game ------ Seed SurveybotProcessingNanovents Manual? 0 Play Time 00:16:07 Cumulative 343.8 hours Start 2021.10.16 @ 15:22:53 End 2021.10.16 @ 15:56:57 Sessions 3 Manual Loads 0 Difficulty Rogue Special Mode None Game No. 165 Rogue 48 Adventurer 115 Explorer 2 Win Type - Total 28 Types 25/2/0/0/0/0/0/0/1 Lore% 54 Gallery% 81 Achievement% 57 Wizard Run 0 Options --------- ASCII 0 Keyboard 1 Movement Numpad Keybinds 0 Fullscreen 1 Font 36/TerminusFine Map View 76x50 Tactical HUD 1 Map Filters NONE Filters NONE Steam 1 RUN: 2db5f19a-8fd8-4568-8378-c7fac14cb9d3